bitfinex/quotes_SOLUSD_20250704
["timestamp","ask_amount","ask_price","bid_price","bid_amount"]
[1751645429590,8.5,146.5,146.46,12.90044973]
[1751645429873,8.5,146.5,146.43,26.0]
[1751645429874,8.5,146.5,146.47,12.90044973]
[1751645430089,15.32606799,146.5,146.47,12.90044973]
[1751645430556,8.5,146.5,146.45,6.82799117]
[1751645430767,8.5,146.5,146.47,12.90044973]
[1751645430768,15.32594125,146.5,146.47,12.90044973]
[1751645431158,28.22639098,146.5,146.46,12.90044973]
[1751645431557,15.32594125,146.5,146.46,12.90044973]
[1751645432654,15.32594125,146.5,146.47,12.90044973]
[1751645432858,12.90044973,146.49,146.43,32.82907771]
[1751645433070,12.90044973,146.49,146.45,12.90044973]
[1751645433270,8.5,146.5,146.48,12.90044973]
[1751645433488,8.5,146.5,146.47,12.90044973]
[1751645433785,8.5,146.5,146.44,18.64964886]
[1751645435090,8.5,146.5,146.48,12.90044973]
[1751645435467,8.5,146.5,146.47,12.90044973]
[1751645436073,15.32595861,146.5,146.47,12.90044973]
[1751645436273,8.5,146.5,146.47,12.90044973]
[1751645436476,8.5,146.5,146.48,12.90044973]
[1751645436782,8.5,146.5,146.47,12.90044973]
[1751645437785,15.32599585,146.5,146.47,12.90044973]
[1751645437987,8.5,146.5,146.47,12.90044973]
[1751645438564,15.32595295,146.5,146.47,12.90044973]
[1751645439175,8.5,146.5,146.47,12.90044973]
[1751645440369,8.5,146.5,146.48,12.90044973]
[1751645440587,8.0561,146.52,146.49,12.90044973]
[1751645441464,0.2,146.52,146.5,12.90044973]
[1751645441769,0.2,146.52,146.51,12.90044973]
[1751645441965,19.92545655,146.52,146.48,12.90044973]
[1751645442180,7.02500682,146.52,146.47,12.90044973]
[1751645442374,19.92545655,146.52,146.44,44.64964886]
[1751645442573,19.92545655,146.52,146.47,12.90044973]
[1751645442786,7.02500682,146.52,146.47,12.90044973]
[1751645443086,19.92545655,146.52,146.47,12.90044973]
[1751645443294,19.92545655,146.52,146.48,12.90044973]
[1751645443897,7.02500682,146.52,146.44,44.64964886]
[1751645444082,19.92545655,146.52,146.48,12.90044973]
[1751645444675,19.92545655,146.52,146.47,12.90044973]
[1751645444983,12.90044973,146.51,146.47,12.90044973]
[1751645445372,19.92545655,146.52,146.48,12.90044973]
[1751645445898,7.02500682,146.52,146.48,12.90044973]
[1751645446194,0.2,146.52,146.49,12.90044973]
[1751645446600,0.2,146.52,146.5,12.90044973]
[1751645447095,0.2,146.52,146.49,12.90044973]
[1751645447300,7.02506774,146.52,146.49,12.90044973]
[1751645447877,0.2,146.52,146.49,12.90044973]
[1751645449307,0.2,146.52,146.46,18.64964886]
[1751645449599,0.2,146.52,146.5,12.90044973]
[1751645451090,0.2,146.52,146.51,12.90044973]
[1751645451399,0.2,146.52,146.49,12.90044973]
[1751645451776,0.2,146.52,146.49,7.54173375]
[1751645451976,7.02500738,146.52,146.49,7.54173375]
[1751645452294,7.02500738,146.52,146.47,7.54173375]
[1751645452483,14.56674113,146.52,146.47,7.54173375]
[1751645453177,14.56674113,146.52,146.48,7.54173375]
[1751645453396,6.82593856,146.5,146.45,6.82807372]
[1751645453593,6.82593856,146.5,146.47,7.54173375]
[1751645454374,6.82593856,146.5,146.43,18.64964886]
[1751645454573,6.82593856,146.5,146.45,7.54173375]
[1751645454788,6.82593856,146.5,146.46,7.54173375]
[1751645454996,6.82593856,146.5,146.47,7.54173375]
[1751645455305,6.82593856,146.5,146.46,7.54173375]
[1751645455603,7.54173375,146.47,146.43,7.54173375]
[1751645455978,7.54173375,146.48,146.43,7.54173375]
[1751645456802,14.36860431,146.48,146.43,7.54173375]
[1751645456977,7.54173375,146.47,146.42,6.82933415]
[1751645457178,7.54173375,146.47,146.43,7.54173375]
[1751645457701,10.4872,146.49,146.46,7.54173375]
[1751645458108,10.4872,146.49,146.47,7.54173375]
[1751645459397,7.54173375,146.48,146.39,17.85972496]
[1751645459603,7.54173375,146.47,146.43,7.54173375]
[1751645459779,8.22330408,146.48,146.43,7.54173375]
[1751645460101,7.54173375,146.47,146.43,7.54173375]
[1751645460802,7.54173375,146.47,146.4,6.83060109]
[1751645460803,14.36953656,146.46,146.4,6.83060109]
[1751645461122,7.54173375,146.46,146.42,7.54173375]
[1751645461804,12.94264579,146.46,146.42,12.94264579]
[1751645462103,19.7708305,146.46,146.42,12.94264579]
[1751645462917,19.7708305,146.46,146.39,0.1]
[1751645462918,19.7708305,146.46,146.41,6.83011208]
[1751645463089,6.82818471,146.46,146.4,6.83044442]
[1751645463298,7.50859198,146.48,146.4,23.90694715]
[1751645463595,12.94264579,146.48,146.44,12.94264579]
[1751645463909,12.94264579,146.48,146.43,12.94264579]
[1751645464091,6.82780281,146.46,146.42,12.94264579]
[1751645465116,6.82780281,146.46,146.43,12.94264579]
[1751645466890,6.82750983,146.47,146.44,12.94264579]
[1751645467316,6.82750983,146.47,146.45,12.94264579]
[1751645467608,10.4872,146.49,146.46,12.94264579]
[1751645467778,10.4872,146.49,146.47,12.94264579]
[1751645467980,6.82567382,146.51,146.48,12.94264579]
[1751645468281,15.90809734,146.52,146.48,12.94264579]
[1751645468713,28.85074313,146.52,146.48,12.94264579]
[1751645469197,15.90809734,146.52,146.48,12.94264579]
[1751645469528,15.90809734,146.52,146.49,12.94264579]
[1751645470293,8.4014,146.52,146.51,12.94264579]
[1751645470496,8.4014,146.52,146.47,6.82714376]
[1751645470709,8.4014,146.52,146.49,12.94264579]
[1751645470914,15.22640682,146.52,146.49,12.94264579]
[1751645473483,15.22640682,146.52,146.45,6.82826903]
[1751645473484,28.16905261,146.52,146.45,6.82826903]
[1751645473787,28.16905261,146.52,146.48,12.94264579]
[1751645474294,12.94264579,146.49,146.37,39.56440679]
[1751645474613,0.68157033,146.51,146.43,12.94264579]
[1751645474614,12.94264579,146.47,146.43,12.94264579]
[1751645474814,14.82334579,146.46,146.42,12.94264579]
[1751645475687,1.8807,146.46,146.43,12.94264579]
[1751645476082,92.46587033,146.5,146.44,12.94264579]
[1751645476288,12.94264579,146.49,146.45,12.94264579]
[1751645477014,19.76921597,146.49,146.45,12.94264579]
[1751645477224,6.82657018,146.49,146.45,12.94264579]
[1751645477718,12.94264579,146.48,146.44,12.94264579]
[1751645478233,6.82657018,146.49,146.43,6.82904193]
[1751645478396,12.94264579,146.48,146.44,12.94264579]
[1751645478595,19.76965711,146.48,146.44,12.94264579]
[1751645479019,6.82657724,146.49,146.44,19.77132738]
[1751645479324,12.94264579,146.48,146.44,19.77132738]
[1751645479822,6.82657724,146.49,146.44,19.77132738]
[1751645479823,19.76922303,146.49,146.44,19.77132738]
[1751645480423,15.60851612,146.5,146.46,12.94264579]
[1751645480731,0.68157033,146.51,146.49,12.94264579]
[1751645480918,8.4014,146.52,146.5,12.94264579]
[1751645481116,8.4014,146.52,146.49,12.94264579]
[1751645481996,15.22646984,146.52,146.49,12.94264579]
[1751645482192,15.22646984,146.52,146.48,12.94264579]
[1751645482406,13.62421612,146.51,146.47,12.94264579]
[1751645482620,13.62421612,146.51,146.46,12.94264579]
[1751645482621,12.94264579,146.5,146.46,12.94264579]
[1751645482918,0.68157033,146.51,146.46,12.94264579]
[1751645483100,13.62421612,146.51,146.43,19.77184745]
[1751645483497,13.62421612,146.51,146.47,12.94264579]
[1751645483823,12.94264579,146.5,146.43,6.82920166]
[1751645484006,20.44985763,146.51,146.47,12.94264579]
[1751645484316,0.68157033,146.51,146.48,12.94264579]
[1751645485020,8.4014,146.52,146.5,12.94264579]
[1751645486017,8.4014,146.52,146.49,12.94264579]
[1751645486197,15.22650326,146.52,146.49,12.94264579]
[1751645486607,15.22650326,146.52,146.47,6.82709178]
[1751645486921,13.62421612,146.51,146.43,6.82920166]
[1751645487094,0.68157033,146.51,146.48,12.94264579]
[1751645487296,105.70798493,146.52,146.49,12.94264579]
[1751645488021,105.7080687,146.52,146.49,12.94264579]
[1751645488222,8.4014,146.52,146.48,6.82680985]
[1751645488528,8.4014,146.52,146.5,12.94264579]
[1751645488705,7.02526531,146.52,146.45,6.82826903]
[1751645489102,7.70683564,146.52,146.49,12.94264579]
[1751645489822,7.70683564,146.52,146.49,7.54288201]
[1751645490426,7.70683564,146.52,146.46,6.82736914]
[1751645490803,0.2,146.52,146.49,7.54288201]
[1751645492019,0.2,146.52,146.51,7.54288201]
[1751645493202,7.02502266,146.52,146.49,7.54288201]
[1751645493402,14.56790467,146.52,146.48,7.54288201]
[1751645493602,0.2,146.52,146.49,7.54288201]
[1751645493820,0.2,146.52,146.51,7.54288201]
[1751645496028,0.2,146.52,146.51,19.74826598]
[1751645500625,0.2,146.52,146.5,6.82580947]
[1751645500948,7.02501715,146.52,146.45,6.82826903]
[1751645501241,7.02501715,146.52,146.48,12.92279332]
[1751645501441,19.94781047,146.52,146.48,12.92279332]
[1751645501941,0.68157033,146.51,146.47,12.92279332]
[1751645502248,26.15472947,146.49,146.45,12.92279332]
[1751645502451,26.8362998,146.49,146.43,6.82885043]
[1751645502617,26.8362998,146.49,146.45,12.92279332]
[1751645503345,13.91350648,146.49,146.45,12.92279332]
[1751645503635,13.91350648,146.49,146.46,12.92279332]
[1751645503836,12.92279332,146.48,146.44,12.92279332]
[1751645504042,12.92279332,146.48,146.41,6.83013455]
[1751645504043,13.60436365,146.48,146.43,12.92279332]
[1751645504218,13.60436365,146.48,146.44,12.92279332]
[1751645504540,12.92279332,146.47,146.4,6.83040452]
[1751645504735,0.68157033,146.46,146.43,12.92279332]
[1751645506044,7.50961501,146.46,146.42,12.92279332]
[1751645506241,20.43240833,146.46,146.42,12.92279332]
[1751645507628,7.50961501,146.46,146.42,12.92279332]
[1751645507820,20.43240833,146.46,146.42,12.92279332]
[1751645508943,7.50961501,146.46,146.42,12.92279332]
[1751645509144,20.43240833,146.46,146.42,12.92279332]
[1751645509569,14.53889332,146.44,146.4,12.92279332]
[1751645509723,1.6161,146.44,146.4,12.92279332]
[1751645510136,2.29767033,146.44,146.4,12.92279332]
[1751645510356,1.6161,146.44,146.42,12.92279332]
[1751645510647,1.6161,146.44,146.41,12.92279332]
[1751645512844,1.6161,146.44,146.42,12.92279332]
[1751645513225,1.6161,146.44,146.43,12.92279332]
[1751645513533,7.50895566,146.47,146.43,12.92279332]
[1751645513736,0.68157033,146.47,146.44,12.92279332]
[1751645514125,1.7292,146.48,146.42,6.82964778]
[1751645514320,21.47890761,146.48,146.42,6.82964778]
[1751645514552,21.47890761,146.48,146.44,12.92279332]
[1751645515047,14.65199332,146.48,146.44,12.92279332]
[1751645515237,1.7292,146.48,146.45,12.92279332]
[1751645515744,8.55614699,146.48,146.44,7.54788556]
[1751645515952,16.10403255,146.48,146.44,7.54788556]
[1751645516137,8.55614699,146.48,146.45,7.54788556]
[1751645516337,1.7292,146.48,146.45,7.54788556]
[1751645516550,1.7292,146.48,146.46,7.54788556]
[1751645516756,1.7292,146.48,146.42,6.82947543]
[1751645517084,1.7292,146.48,146.46,7.54788556]
[1751645517632,1.7292,146.48,146.41,17.07533452]
[1751645517940,8.55607635,146.48,146.45,7.54788556]
[1751645518947,16.10396191,146.48,146.44,7.54788556]
[1751645519536,0.68157033,146.47,146.44,7.54788556]
[1751645519732,6.82780281,146.46,146.44,7.54788556]
[1751645519933,8.55641314,146.48,146.45,7.54788556]
[1751645520163,9.23798347,146.48,146.45,7.54788556]
[1751645520964,2.41077033,146.48,146.45,7.54788556]
[1751645521162,8.55612936,146.48,146.41,18.64964886]
[1751645521364,8.55612936,146.48,146.45,7.54788556]
[1751645521951,1.7292,146.48,146.46,7.54788556]
[1751645522333,1.7292,146.48,146.47,7.54788556]
[1751645523238,8.55509764,146.52,146.47,7.54788556]
[1751645523436,1.7298,146.52,146.51,7.54788556]
[1751645523665,0.2,146.52,146.51,7.54788556]
[1751645524045,7.02500682,146.52,146.51,7.54788556]
[1751645524240,7.02500682,146.52,146.5,7.54788556]
[1751645524668,0.2,146.52,146.46,6.82780281]
[1751645524867,0.2,146.52,146.5,7.54788556]
[1751645525066,0.2,146.52,146.46,6.82780281]
[1751645525252,7.02500682,146.52,146.51,7.54788556]
[1751645525453,7.02500682,146.52,146.49,7.54788556]
[1751645525667,15.25446271,146.52,146.48,7.54788556]
[1751645525978,7.70657715,146.52,146.49,7.54788556]
[1751645526263,7.70657715,146.52,146.48,7.54788556]
[1751645528346,0.2,146.52,146.5,7.54788556]
[1751645529670,0.2,146.52,146.48,6.82667828]
[1751645529857,0.2,146.52,146.49,7.54788556]
[1751645530637,0.2,146.52,146.46,6.82780281]
[1751645530638,0.2,146.52,146.5,7.54788556]
[1751645531144,0.2,146.52,146.46,6.82780281]
[1751645531347,0.2,146.52,146.5,7.54788556]
[1751645531561,0.2,146.52,146.46,6.82780281]
[1751645531771,0.2,146.52,146.5,7.54788556]
[1751645534289,15.25454077,146.52,146.48,7.54788556]
[1751645534578,0.2,146.52,146.47,18.64964886]
[1751645534742,0.2,146.52,146.51,15.09577112]
[1751645534949,0.2,146.52,146.51,7.54788556]
[1751645535162,0.2,146.52,146.51,15.09577112]
[1751645535738,0.2,146.52,146.51,7.54788556]
[1751645536150,0.2,146.52,146.51,14.37335822]
[1751645538084,0.2,146.52,146.51,21.92124378]
[1751645538267,0.2,146.52,146.51,40.57089264]
[1751645539181,14.9381,146.57,146.51,57.63457429]
[1751645539182,8.58,146.57,146.51,57.63457429]
[1751645539383,0.2,146.57,146.56,7.54788556]
[1751645540084,0.2,146.57,146.56,14.37102966]
[1751645540580,1.5159,146.69,146.6,26.0]
[1751645540780,6.53890282,146.69,146.67,7.54788556]
[1751645540987,5.02300282,146.71,146.68,7.54788556]
[1751645541285,5.02300282,146.74,146.7,15.09577112]
[1751645541487,1.5159,146.75,146.73,7.54788556]
[1751645541657,1.5159,146.75,146.74,7.54788556]
[1751645541973,1.5159,146.75,146.67,44.64964886]
[1751645542179,1.5159,146.75,146.74,7.54788556]
[1751645543786,1.5159,146.75,146.74,12.88640316]
[1751645543986,6.81353328,146.77,146.74,12.88640316]
[1751645544179,13.56084396,146.78,146.75,12.88640316]
[1751645544492,13.56084396,146.78,146.76,12.88640316]
[1751645545592,6.0662,146.78,146.77,12.88640316]
[1751645546665,8.38201446,146.79,146.77,12.88640316]
[1751645546666,1.5695,146.79,146.77,12.88640316]
[1751645546885,1.5695,146.79,146.78,12.88640316]
[1751645547111,34.38195316,146.79,146.78,12.88640316]
[1751645548366,34.38195316,146.79,146.77,12.88640316]
[1751645549366,34.38195316,146.79,146.72,18.64964886]
[1751645549878,34.38195316,146.79,146.77,12.88640316]
[1751645550388,35.06352349,146.79,146.76,12.88640316]
[1751645550593,28.25107033,146.79,146.75,12.88640316]
[1751645550775,27.5695,146.79,146.78,12.88640316]
[1751645550973,34.38195316,146.79,146.78,12.88640316]
[1751645551290,34.38195316,146.79,146.77,12.88640316]
[1751645552689,27.5695,146.79,146.77,12.88640316]
[1751645552888,34.38198213,146.79,146.77,12.88640316]
[1751645553075,6.0815,146.77,146.7,12.88640316]
[1751645553398,12.88640316,146.74,146.7,12.88640316]
[1751645553795,6.81523887,146.73,146.7,12.88640316]
[1751645554501,12.88640316,146.72,146.65,32.81879956]
[1751645554692,12.88640316,146.7,146.66,12.88640316]
[1751645555979,19.70326827,146.7,146.66,12.88640316]
[1751645556189,6.81686511,146.7,146.66,12.88640316]
[1751645556573,19.70326827,146.7,146.66,12.88640316]
[1751645558279,19.82657349,146.69,146.65,12.88640316]
[1751645558495,6.2586,146.69,146.67,12.88640316]
[1751645558680,6.2586,146.69,146.68,12.88640316]
[1751645558882,98.23545123,146.71,146.68,12.88640316]
[1751645558883,1.619,146.71,146.68,12.88640316]
[1751645559216,14.5786,146.73,146.7,12.88640316]
[1751645559420,6.94017033,146.77,146.72,12.88640316]
[1751645559579,6.2586,146.77,146.76,12.88640316]
[1751645559982,8.32,146.8,146.76,12.88640316]
[1751645560184,8.32,146.8,146.79,12.88640316]
[1751645560514,6.3052,146.81,146.79,12.88640316]
[1751645560687,0.2,146.81,146.8,12.88640316]
[1751645561205,0.2,146.81,146.76,42.4980009]
[1751645561505,0.2,146.81,146.79,12.88640316]
[1751645561809,7.01171633,146.81,146.78,12.88640316]
[1751645562182,0.2,146.81,146.79,12.88640316]
[1751645562607,0.2,146.81,146.8,12.88640316]
[1751645563491,32.51031019,146.84,146.8,12.88640316]
[1751645563805,32.51031019,146.84,146.77,6.81332926]
[1751645563806,32.51031019,146.84,146.82,12.88640316]
[1751645563989,0.68157033,146.83,146.8,12.88640316]
[1751645564311,33.19188052,146.84,146.8,12.88640316]
[1751645564616,46.07828368,146.84,146.74,18.64964886]
[1751645564786,46.07828368,146.84,146.8,12.88640316]
[1751645565387,46.07828368,146.84,146.79,12.88640316]
[1751645565810,12.88640316,146.83,146.79,12.88640316]
[1751645566008,12.88640316,146.82,146.78,12.88640316]
[1751645566212,33.19188052,146.84,146.8,12.88640316]
[1751645566411,33.19188052,146.84,146.81,12.88640316]
[1751645566592,0.1,146.85,146.82,12.88640316]
[1751645566790,0.1,146.85,146.84,12.88640316]
[1751645567694,0.1,146.85,146.76,18.64964886]
[1751645567920,0.1,146.85,146.84,12.88640316]
[1751645568096,7.59131783,146.85,146.82,12.88640316]
[1751645568410,7.59131783,146.85,146.77,6.81338148]
[1751645568411,20.47772099,146.85,146.81,12.88640316]
[1751645568990,7.59131783,146.85,146.81,12.88640316]
[1751645570220,7.59131783,146.85,146.82,12.88640316]
[1751645571904,20.47772099,146.85,146.77,6.81338148]
[1751645572111,12.88640316,146.84,146.8,12.88640316]
[1751645572424,20.47772099,146.85,146.81,12.88640316]
[1751645574005,20.47772099,146.85,146.78,6.8127264]
[1751645574322,20.47772099,146.85,146.81,12.88640316]
[1751645575117,12.88640316,146.83,146.73,17.03800174]
[1751645575305,12.88640316,146.82,146.78,12.88640316]
[1751645576502,19.69787808,146.82,146.78,12.88640316]
[1751645576922,12.88640316,146.81,146.77,12.88640316]
[1751645577160,13.56797349,146.81,146.77,12.88640316]
[1751645577498,0.1,146.85,146.8,12.88640316]
[1751645577701,12.88640316,146.83,146.79,12.88640316]
[1751645577940,0.68157033,146.82,146.79,12.88640316]
[1751645578435,25.55968443,146.85,146.79,12.88640316]
[1751645578436,19.69700044,146.83,146.79,12.88640316]
[1751645578600,0.68157033,146.82,146.79,12.88640316]
[1751645579331,0.68157033,146.82,146.77,12.88640316]
[1751645579501,13.56797349,146.82,146.77,12.88640316]
[1751645579698,26.0,146.8,146.74,6.81477443]
[1751645579927,12.88640316,146.79,146.75,12.88640316]
[1751645580224,39.56797349,146.8,146.76,12.88640316]
[1751645580425,46.38029197,146.8,146.72,6.81570338]
[1751645580714,46.38029197,146.8,146.76,12.88640316]
[1751645580922,26.68157033,146.8,146.77,12.88640316]
[1751645581126,1.5903,146.81,146.79,12.88640316]
[1751645581345,7.49186895,146.84,146.8,12.88640316]
[1751645581517,38.49593547,146.84,146.8,12.88640316]
[1751645581722,46.37827211,146.84,146.8,12.88640316]
[1751645582435,46.37827211,146.84,146.78,12.88640316]
[1751645582436,12.88640316,146.83,146.78,12.88640316]
[1751645582637,0.68157033,146.82,146.78,12.88640316]
[1751645582845,0.68157033,146.82,146.79,12.88640316]
[1751645583046,0.68157033,146.83,146.79,12.88640316]
[1751645583346,0.68157033,146.83,146.8,12.88640316]
[1751645583534,5.7087676,146.83,146.8,12.88640316]
[1751645584328,11.83825843,146.82,146.8,12.88640316]
[1751645584533,6.81106116,146.82,146.8,12.88640316]
[1751645585027,12.51951631,146.83,146.8,12.88640316]
[1751645585228,5.02719727,146.82,146.8,12.88640316]
[1751645585435,5.02719727,146.81,146.8,12.88640316]
[1751645585634,5.02719727,146.82,146.8,12.88640316]
[1751645585852,5.02719727,146.81,146.8,12.88640316]
[1751645586055,11.83830959,146.82,146.8,12.88640316]
[1751645586238,5.02719727,146.81,146.8,12.88640316]
[1751645587044,5.02719727,146.81,146.79,12.88640316]
[1751645587349,6.81111232,146.82,146.79,12.88640316]
[1751645587551,5.05470914,146.81,146.79,12.88640316]
[1751645587740,0.68157033,146.83,146.79,12.88640316]
[1751645587945,5.05648002,146.82,146.79,12.88640316]
[1751645588145,5.05648002,146.81,146.79,12.88640316]
[1751645588347,7.49234995,146.83,146.79,12.88640316]
[1751645588653,5.05815276,146.82,146.79,12.88640316]
[1751645588850,5.05815276,146.81,146.79,12.88640316]
[1751645589042,20.37875311,146.83,146.79,12.88640316]
[1751645589243,5.06078998,146.82,146.79,12.88640316]
[1751645589454,5.06078998,146.81,146.79,12.88640316]
[1751645589644,5.06078998,146.82,146.79,12.88640316]
[1751645589952,5.06290618,146.81,146.79,12.88640316]
[1751645590358,6.81130108,146.82,146.79,12.88640316]
[1751645590538,5.05953618,146.81,146.79,12.88640316]
[1751645591156,11.87083726,146.82,146.79,12.88640316]
[1751645591730,5.05953618,146.82,146.79,12.88640316]
[1751645592264,6.8111135,146.82,146.8,12.88640316]
[1751645593060,6.8111135,146.82,146.79,12.88640316]
[1751645593364,11.86885534,146.82,146.79,12.88640316]
[1751645593735,11.86885534,146.82,146.79,7.5121212]
[1751645594142,6.8111135,146.82,146.79,7.5121212]
[1751645596359,6.8111135,146.82,146.8,7.5121212]
[1751645598562,6.8111135,146.82,146.79,7.5121212]
[1751645599136,6.8111135,146.82,146.8,7.5121212]
[1751645600555,6.8111135,146.82,146.79,7.5121212]
[1751645602156,6.8111135,146.82,146.76,6.81356672]
[1751645602357,6.8111135,146.82,146.79,7.5121212]
[1751645603171,11.89355626,146.82,146.79,7.5121212]
[1751645603342,6.8111135,146.82,146.79,7.5121212]
[1751645603538,11.89355626,146.82,146.79,7.5121212]
[1751645604334,5.08244276,146.81,146.78,7.5121212]
[1751645604539,5.08244276,146.81,146.72,35.68871829]
[1751645604540,8.19369153,146.81,146.72,35.68871829]
[1751645604764,12.59931507,146.8,146.76,7.5121212]
[1751645604939,5.7687642,146.79,146.76,7.5121212]
[1751645605254,0.68157033,146.79,146.76,7.5121212]
[1751645605573,12.59858192,146.78,146.72,6.81555982]
[1751645605751,5.08646072,146.77,146.75,7.5121212]
[1751645606071,5.08561636,146.78,146.75,7.5121212]
[1751645606458,13.27930789,146.79,146.75,7.5121212]
[1751645606764,7.49400216,146.8,146.77,7.5121212]
[1751645606943,5.0874539,146.8,146.79,7.5121212]
[1751645607451,5.0874539,146.8,146.76,6.81372521]
[1751645607768,5.0874539,146.8,146.79,7.5121212]
[1751645607938,5.0874539,146.81,146.79,7.5121212]
[1751645608135,5.08797869,146.8,146.79,7.5121212]
[1751645608347,5.08797869,146.81,146.79,7.5121212]
[1751645608564,33.49279589,146.82,146.79,7.5121212]
[1751645608765,11.89908895,146.81,146.74,6.81477443]
[1751645608974,5.08738098,146.8,146.74,6.81477443]
[1751645609269,5.08738098,146.8,146.79,7.5121212]
[1751645609472,6.81170797,146.81,146.79,7.5121212]
[1751645609846,5.08823589,146.8,146.79,7.5121212]
[1751645610470,5.08746128,146.8,146.77,7.5121212]
[1751645611670,11.89951165,146.8,146.77,7.5121212]
[1751645612640,11.89951165,146.8,146.74,6.81457109]
[1751645612977,7.4936207,146.8,146.76,7.5121212]
[1751645613169,5.08892332,146.79,146.76,7.5121212]
[1751645613869,40.9680164,146.82,146.78,7.5121212]
[1751645614167,34.1568,146.82,146.8,7.5121212]
[1751645614708,26.0,146.82,146.81,7.5121212]
[1751645614974,31.08736758,146.82,146.81,7.5121212]
[1751645616174,37.89842874,146.82,146.8,7.5121212]
[1751645616367,5.08736758,146.81,146.8,7.5121212]
[1751645617665,5.08736758,146.81,146.77,6.81318608]
[1751645617855,5.08736758,146.81,146.8,7.5121212]
[1751645619562,5.08736758,146.81,146.77,6.81318608]
[1751645619764,5.08736758,146.81,146.8,7.5121212]
[1751645620662,26.0,146.82,146.8,7.5121212]
[1751645620871,0.68157033,146.84,146.81,7.5121212]
[1751645621073,6.705,146.85,146.83,7.5121212]
[1751645621276,6.705,146.85,146.79,7.5121212]
[1751645621277,20.09359556,146.84,146.79,7.5121212]
[1751645621456,14.32343437,146.82,146.78,7.5121212]
[1751645621655,5.08975549,146.81,146.77,6.81319842]
[1751645621887,5.08854554,146.8,146.78,7.5121212]
[1751645622083,5.08854554,146.81,146.78,7.5121212]
[1751645622391,5.08854554,146.8,146.78,7.5121212]
[1751645622582,5.0889202,146.81,146.77,7.5121212]
[1751645622883,19.46379411,146.8,146.76,7.5121212]
[1751645623072,12.60152314,146.79,146.74,7.5121212]
[1751645623478,0.68157033,146.78,146.75,7.5121212]
[1751645623792,0.68157033,146.78,146.74,6.81466059]
[1751645623993,15.00661783,146.78,146.71,0.2]
[1751645624301,7.5121212,146.77,146.73,7.5121212]
[1751645625076,8.19369153,146.76,146.72,7.5121212]
[1751645625586,0.68157033,146.76,146.72,7.5121212]
[1751645625767,15.00784057,146.76,146.72,7.5121212]
[1751645626977,11.10362009,146.75,146.72,7.5121212]
[1751645627274,14.10483499,146.78,146.74,7.5121212]
[1751645627491,14.10483499,146.78,146.75,7.5121212]
[1751645628362,5.0867834,146.78,146.77,7.5121212]
[1751645628584,5.0867834,146.78,146.75,7.5121212]
[1751645628762,5.0867834,146.78,146.76,7.5121212]
[1751645628960,5.0867834,146.78,146.77,7.5121212]
[1751645629195,7.84134809,146.82,146.77,7.5121212]
[1751645629196,1.5438,146.82,146.77,7.5121212]
[1751645629373,5.08645207,146.81,146.8,7.5121212]
[1751645629566,5.08645207,146.81,146.79,7.5121212]
[1751645630391,5.08645207,146.81,146.77,6.81297779]
[1751645630566,5.08645207,146.81,146.79,7.5121212]
[1751645630962,5.08645207,146.81,146.8,7.5121212]
[1751645631189,6.63025207,146.82,146.8,7.5121212]
[1751645631380,13.44131323,146.82,146.8,7.5121212]
[1751645631906,1.5438,146.82,146.81,7.5121212]
[1751645632087,12.8653094,146.83,146.78,6.81257765]
[1751645632398,12.8653094,146.83,146.81,7.5121212]
[1751645632599,12.8653094,146.83,146.8,7.5121212]
[1751645632771,12.8653094,146.83,146.81,7.5121212]
[1751645632966,6.0545,146.83,146.81,7.5121212]
[1751645633173,5.08568295,146.83,146.82,7.5121212]
[1751645633898,6.81016981,146.84,146.82,7.5121212]
[1751645635204,0.68157033,146.78,146.75,7.5121212]
[1751645635368,9.1725212,146.79,146.73,6.81523887]
[1751645635369,1.6604,146.79,146.76,7.5121212]
[1751645635790,7.5121212,146.77,146.71,0.2]
[1751645635993,7.5121212,146.75,146.71,0.2]
[1751645636195,7.49626973,146.75,146.71,7.7121212]
[1751645636392,15.00839093,146.75,146.71,7.7121212]
[1751645637171,15.00839093,146.75,146.71,0.2]
[1751645637376,15.00839093,146.75,146.71,7.7121212]
[1751645637604,14.1116212,146.74,146.71,0.2]
[1751645637899,0.68157033,146.73,146.71,0.2]
[1751645639163,13.41442746,146.74,146.71,0.2]
[1751645639403,7.28107033,146.74,146.71,7.7121212]
[1751645639591,14.09591484,146.74,146.71,7.7121212]
[1751645640701,7.28107033,146.74,146.71,0.2]
[1751645640879,7.28107033,146.74,146.72,7.5121212]
[1751645641303,0.68157033,146.75,146.71,7.01616601]
[1751645641513,0.68157033,146.75,146.73,7.5121212]
[1751645641873,0.68157033,146.75,146.71,0.2]
[1751645642199,8.19369153,146.75,146.71,7.7121212]
[1751645642498,6.81477443,146.74,146.71,7.7121212]
[1751645643006,0.68157033,146.73,146.71,0.2]
[1751645643972,8.19369153,146.73,146.71,0.2]